fUSD/lending_fUSD_20240715
["ID","MTS","AMOUNT","RATE_DAILY","PERIOD"]
[332208774,1721035833287,-150.0,0.00013752,2]
[332208775,1721035833296,-648.53,0.00013753,2]
[332208776,1721035833305,-150.0,0.00013753,2]
[332208777,1721035833315,-710.24,0.00013753,2]
[332208778,1721035833324,-150.0,0.00013756,2]
[332208779,1721035833334,-3110.4112111,0.00013759,2]
[332208780,1721035833343,-150.0,0.00013764,2]
[332208781,1721035833352,-150.0,0.00013769,2]
[332208782,1721035833361,-150.0,0.00013772,2]
[332208783,1721035833372,-300.0,0.00013778,2]
[332208784,1721035833381,-364.0545306,0.00013779,2]
[332208785,1721035833391,-150.0,0.00013781,2]
[332208786,1721035833401,-160.86862208,0.00013781,2]
[332208787,1721035833414,-150.0,0.00013788,2]
[332208788,1721035833424,-322.88753622,0.00013788,2]
[332208789,1721035833434,-196.73465382,0.0001379,2]
[332208790,1721035833444,-196.73465378,0.0001379,2]
[332208791,1721035833454,-196.73465378,0.0001379,2]
[332208792,1721035833463,-196.73465378,0.0001379,2]
[332208793,1721035833473,-196.73465378,0.0001379,2]
[332208794,1721035833483,-196.73465378,0.0001379,2]
[332208795,1721035833493,-196.73465378,0.0001379,2]
[332208796,1721035833503,-300.0,0.00013798,2]
[332208797,1721035833512,-1254.0,0.000138,2]
[332208798,1721035833522,-2331.427,0.000138,2]
[332208799,1721035833531,-225.68,0.000138,2]
[332208800,1721035833540,-356.0,0.000138,2]
[332208801,1721035833550,-1810.736,0.000138,2]
[332208802,1721035833561,-361.0,0.000138,2]
[332208803,1721035833570,-1661.0,0.000138,2]
[332208804,1721035833580,-1252.0,0.000138,2]
[332208805,1721035833589,-1072.0,0.000138,2]
[332208806,1721035833598,-620.0,0.000138,2]
[332208807,1721035833609,-150.0,0.00013805,2]
[332208808,1721035833618,-648.53,0.00013808,2]
[332208809,1721035833627,-710.24,0.00013808,2]
[332208810,1721035833636,-150.0,0.00013812,2]
[332208811,1721035833647,-1500.0,0.00013815,2]
[332208812,1721035833657,-160.86862206,0.00013821,2]
[332208813,1721035833667,-150.0,0.00013821,2]
[332208814,1721035833676,-196.73465378,0.00013823,2]
[332208815,1721035833686,-150.0,0.00013827,2]
[332208816,1721035833695,-261.216135,0.00013835,2]
[332208817,1721035833704,-153.530903,0.00013835,2]
[332208818,1721035833713,-150.0,0.00013836,2]
[332208819,1721035833723,-150.0,0.00013838,2]
[332208820,1721035833732,-150.0,0.00013848,2]
[332208821,1721035833741,-2847.05462079,0.00013849,2]
[332208822,1721035833751,-150.0,0.00013849,2]
[332208823,1721035833760,-192.28081156,0.00013851,2]
[332208824,1721035833770,-500.0,0.00013851,2]
[332208825,1721035833779,-3000.0,0.0001386,2]
[332208826,1721035833788,-160.86862206,0.0001386,2]
[332208827,1721035833797,-196.73465378,0.00013861,2]
[332208828,1721035833807,-648.53,0.00013863,2]
[332208829,1721035833817,-710.24,0.00013863,2]
[332208830,1721035833826,-500.0,0.00013863,2]
[332208831,1721035833835,-606.44,0.00013863,2]
[332208832,1721035833845,-500.0,0.00013863,2]
[332208833,1721035833855,-1059.78,0.00013863,2]
[332208834,1721035833864,-500.0,0.00013863,2]
[332208835,1721035833873,-284.29727874,0.00013864,2]
[332208836,1721035833883,-1541.88,0.00013867,2]
[332208837,1721035833894,-536.38,0.00013867,2]
[332208838,1721035833904,-150.0,0.00013879,2]
[332208839,1721035833914,-88017.57867291,0.0001388,2]
[332208850,1721035838490,-150.0,0.000138,2]
[332208851,1721035838500,-383.68101478,0.00013851,2]
[332208852,1721035838510,-122895.83917638,0.0001388,2]
[332208853,1721035838521,-13807.46081107,0.0001388,2]
[332208854,1721035838532,-2396.30781176,0.0001388,2]
[332208855,1721035838589,-20181.90211607,0.0001388,2]
[332208856,1721035838600,-321.64,0.0001388,2]
[332208857,1721035838662,-2480.7848316,0.0001388,2]
[332208910,1721035840635,-449.0,0.000138,2]
[332208911,1721035840645,-49.56951648,0.0001388,2]
[332208912,1721035840656,-2459.97296239,0.0001388,2]
[332208913,1721035840667,-7103.85414489,0.0001388,2]
[332208914,1721035840678,-3850.09787817,0.0001388,2]
[332208915,1721035840688,-989.22878096,0.0001388,2]
[332208916,1721035840700,-952.47687904,0.0001388,2]
[332208973,1721035843416,-431.84274623,0.0001388,2]
[332208974,1721035843495,-672.32,0.0001388,2]
[332208975,1721035843513,-444.0,0.000138,2]
[332208976,1721035843522,-2263.76381886,0.0001388,2]
[332208977,1721035843531,-500.0,0.00013888,2]
[332208978,1721035843541,-200.0,0.00013888,2]
[332208979,1721035843550,-7500.0,0.0001389,2]
[332208980,1721035843559,-1500.0,0.00013891,2]
[332208981,1721035843569,-296.79126626,0.00013893,2]
[332208982,1721035843578,-744.21,0.00013895,2]
[332208983,1721035843587,-1675.55,0.00013895,2]
[332208984,1721035843596,-150.0,0.00013897,2]
[332208985,1721035843606,-279.44065668,0.00013898,2]
[332208986,1721035843615,-155.24736866,0.00013899,2]
[332208987,1721035843624,-6386.5957,0.000139,2]
[332208988,1721035843633,-160.86862206,0.000139,2]
[332208989,1721035843642,-196.73465378,0.000139,2]
[332208990,1721035843651,-150.0,0.00013905,2]
[332208991,1721035843660,-500.0,0.00013906,2]
[332208992,1721035843670,-150.0,0.00013915,2]
[332208993,1721035843679,-150.0,0.00013915,2]
[332208994,1721035843687,-1016.98,0.00013915,2]
[332208995,1721035843696,-530.34386721,0.00013915,2]
[332208996,1721035843708,-42.14146676,0.00013915,2]
[332208997,1721035843717,-500.0,0.00013915,2]
[332208998,1721035843727,-500.0,0.00013915,2]
[332208999,1721035843736,-500.0,0.00013915,2]
[332209000,1721035843745,-500.0,0.00013915,2]
[332209001,1721035843754,-500.0,0.00013915,2]
[332209002,1721035843763,-500.0,0.00013915,2]
[332209003,1721035843772,-36.25853323,0.00013915,2]
[332209004,1721035843783,-377.93875061,0.00013915,2]
[332209005,1721035843794,-85.80271616,0.00013915,2]
[332209007,1721035843803,-648.53,0.00013917,2]
[332209009,1721035843812,-710.24,0.00013917,2]
[332209011,1721035843821,-500.0,0.00013918,2]
[332209013,1721035843831,-606.44,0.00013918,2]
[332209015,1721035843841,-500.0,0.00013918,2]
[332209017,1721035843850,-1059.78,0.00013918,2]
[332209018,1721035843859,-500.0,0.00013918,2]
[332209019,1721035843868,-150.0,0.0001392,2]
[332209020,1721035843878,-1541.88,0.00013922,2]
[332209022,1721035843887,-1500.0,0.00013925,2]
[332209024,1721035843896,-150.0,0.00013936,2]
[332209025,1721035843905,-1500.0,0.00013936,2]
[332209028,1721035843915,-150.0,0.00013937,2]
[332209029,1721035843924,-150.0,0.00013939,2]
[332209031,1721035843933,-150.0,0.00013944,2]
[332209034,1721035843943,-150.0,0.00013949,2]
[332209036,1721035843953,-744.21,0.0001395,2]
[332209037,1721035843962,-1675.55,0.0001395,2]
[332209040,1721035843971,-150.0,0.00013952,2]
[332209043,1721035843979,-150.0,0.00013955,2]
[332209046,1721035843989,-150.0,0.00013958,2]
[332209048,1721035843998,-500.0,0.00013961,2]
[332209050,1721035844007,-150.0,0.00013964,2]
[332209052,1721035844017,-150.0,0.00013966,2]
[332209054,1721035844026,-1016.98,0.0001397,2]
[332209056,1721035844035,-500.0,0.0001397,2]
[332209058,1721035844044,-500.0,0.0001397,2]
[332209060,1721035844054,-500.0,0.0001397,2]
[332209062,1721035844065,-500.0,0.0001397,2]
[332209064,1721035844074,-500.0,0.0001397,2]
[332209066,1721035844082,-648.53,0.00013972,2]
[332209068,1721035844091,-710.24,0.00013972,2]
[332209070,1721035844101,-1219.171288,0.00013973,2]
[332209072,1721035844110,-500.0,0.00013973,2]
[332209074,1721035844119,-606.44,0.00013973,2]
[332209076,1721035844128,-500.0,0.00013973,2]
[332209078,1721035844138,-1059.78,0.00013973,2]
[332209080,1721035844147,-500.0,0.00013973,2]
[332209082,1721035844156,-1541.88,0.00013977,2]
[332209084,1721035844166,-150.0,0.00013981,2]
[332209086,1721035844175,-1500.0,0.00013985,2]
[332209088,1721035844184,-273.09054927,0.00013988,2]
[332209090,1721035844194,-150.0,0.00013991,2]
[332209092,1721035844203,-61.85915633,0.00013992,2]
[332209095,1721035844222,-111.63084367,0.00013992,2]
[332209097,1721035844231,-150.0,0.00013994,2]
[332209099,1721035844241,-150.0,0.00013995,2]
[332209101,1721035844250,-238.42676761,0.00013997,2]
[332209103,1721035844262,-261.57323239,0.00013997,2]
[332209105,1721035844272,-438.93776688,0.00013997,2]
[332209107,1721035844281,-500.0,0.00013997,2]
[332209109,1721035844290,-500.0,0.00013997,2]
[332209111,1721035844300,-254.04347558,0.00013997,2]
[332209113,1721035844308,-500.0,0.00013997,2]
[332209115,1721035844318,-17.13814832,0.00013997,2]
[332209169,1721035846586,-564.10299922,0.00011199,2]
[332209170,1721035846598,-1933.41979315,0.00011199,2]
[332209171,1721035846607,-500.0,0.00013863,2]
[332209172,1721035846617,-512.94,0.00013918,2]
[332209173,1721035846627,-486.41132797,0.00013997,2]
[332209174,1721035846636,-510.52336736,0.00013997,2]
[332209175,1721035846645,-297.27,0.00013997,2]
[332209176,1721035846655,-504.21870108,0.00013997,2]
[332209177,1721035846664,-418.27092603,0.00013997,2]
[332209178,1721035846673,-205.04071128,0.00013997,2]
[332209179,1721035846682,-505.99245864,0.00013997,2]
[332209180,1721035846691,-500.0,0.00013997,2]
[332209181,1721035846700,-500.0,0.00013997,2]
[332209182,1721035846710,-214.34083385,0.00013997,2]
[332209183,1721035846721,-285.65916615,0.00013997,2]
[332209184,1721035846731,-500.0,0.00013997,2]
[332209185,1721035846740,-500.0,0.00013997,2]
[332209186,1721035846749,-150.95739609,0.00013997,2]
[332209187,1721035846903,-341.58632942,0.00013997,2]
[332209188,1721035846916,-7.45627449,0.00013997,2]
[332209189,1721035846925,-371.95409546,0.00013997,2]
[332209190,1721035846935,-540.24047808,0.00013997,2]
[332209191,1721035846944,-6123.599026,0.00013998,2]
[332209192,1721035846954,-243.56644731,0.00013998,2]
[332209193,1721035846972,-428.27658993,0.00013998,2]
[332209194,1721035846983,-3137.56541814,0.00013998,2]
[332209195,1721035846995,-5375.99008362,0.00013998,2]
[332209196,1721035847004,-379.30991638,0.00013998,2]
[332209197,1721035872196,157.66,0.000199,31]
[332209198,1721035872251,157.66,0.000199,31]
[332209199,1721035872307,157.66,0.000199,31]
[332209200,1721035872374,157.66,0.000199,31]
[332209202,1721035970800,157.31,0.00018849,30]
[332209213,1721036441729,1281.63,0.00025,60]
[332209214,1721036473551,157.74,0.000199,31]
[332209215,1721036473600,157.74,0.000199,31]
[332209216,1721036473666,157.74,0.000199,31]
[332209217,1721036473724,157.74,0.000199,31]
[332209218,1721036500362,157.31,0.00018849,30]
[332209220,1721036592715,-714.52,0.00010792,2]
[332209222,1721036829804,712.10534728,0.00011,2]
[332209223,1721037034985,-150.0,0.00011097,2]
[332209224,1721037034995,-155.0,0.00011098,2]
[332209225,1721037035005,-616.92384194,0.00011098,2]
[332209226,1721037035015,-685.81454762,0.00011098,2]
[332209227,1721037035025,-209.03744674,0.00011098,2]
[332209228,1721037035226,-155.5408783,0.00011098,2]
[332209229,1721037035236,-306.00391433,0.00011098,2]
[332209231,1721037035245,-169.51035101,0.00011098,2]
[332209233,1721037035255,-1352.16902006,0.00011098,2]
[332209235,1721037035267,-1069.50759817,0.00011098,2]
[332209238,1721037035282,-3293.69493702,0.00011098,2]
[332209240,1721037035291,-5980.2705056,0.00011098,2]
[332209242,1721037035301,-425.26598198,0.00011098,2]
[332209244,1721037035311,-265.98826073,0.00011098,2]
[332209246,1721037035320,-155.0,0.00011098,2]
[332209248,1721037035329,-31243.28975767,0.00011199,2]
[332209250,1721037035341,-244.55069888,0.00011199,2]
[332209252,1721037035351,-155.0,0.00012121,2]
[332209254,1721037035361,-1984.78330199,0.00012273,2]
[332209256,1721037035370,-150.0,0.000126,2]
[332209258,1721037035379,-10967.32378177,0.00012685,2]
[332209260,1721037035391,-586.05621823,0.00012685,2]
[332209262,1721037035400,-103.50146718,0.00012794,2]
[332209265,1721037035415,-74.09853282,0.00012794,2]
[332209267,1721037035424,-190.52,0.00012794,2]
[332209269,1721037035434,-250.0,0.00012794,2]
[332209271,1721037035443,-1000.0,0.00012805,2]
[332209273,1721037035452,-1000.0,0.00013,2]
[332209275,1721037035462,-1250.0,0.00013,2]
[332209277,1721037035471,-714.52,0.00013056,2]
[332209279,1721037035481,-371.1851228,0.00013128,2]
[332209281,1721037035490,-1500.0,0.00013186,2]
[332209283,1721037035499,-1000.0,0.0001325,2]
[332209285,1721037035508,-1500.0,0.00013271,2]
[332209287,1721037035518,-1500.0,0.00013398,2]
[332209289,1721037035527,-1500.0,0.00013469,2]
[332209290,1721037035536,-191.913629,0.00013498,2]
[332209291,1721037035545,-306.32165,0.00013498,2]
[332209292,1721037035555,-152.238972,0.00013498,2]
[332209293,1721037035564,-262.725682,0.00013498,2]
[332209294,1721037035573,-1000.0,0.000135,2]
[332209295,1721037035583,-1024.38275483,0.00013516,7]
[332209296,1721037035593,-155.0,0.00013516,2]
[332209297,1721037035602,-316.3859,0.00013559,2]
[332209298,1721037035612,-250.0920267,0.00013658,2]
[332209299,1721037035624,-535.10932155,0.00013658,2]
[332209300,1721037035633,-497.53307845,0.00013659,2]
[332209301,1721037035644,-12411.84652715,0.00013659,2]
[332209302,1721037035655,-11151.7078944,0.00013659,2]
[332209303,1721037035666,-2861.0871,0.00013659,2]
[332209304,1721037035675,-306.32165,0.00013667,2]
[332209305,1721037035685,-262.725682,0.00013667,2]
[332209306,1721037035695,-224.87,0.00013699,2]
[332209307,1721037035704,-250.0,0.00013699,2]
[332209308,1721037035713,-200.0,0.00013699,2]
[332209309,1721037035722,-152.238972,0.00013723,2]
[332209310,1721037035732,-1500.0,0.00013728,2]
[332209311,1721037035741,-1322.90276768,0.00013759,2]
[332209312,1721037035751,-361.0,0.000138,2]
[332209313,1721037035761,-1661.0,0.000138,2]
[332209314,1721037035774,-444.0,0.000138,2]
[332209315,1721037035783,-449.0,0.000138,2]
[332209316,1721037035793,-255.237,0.000138,2]
[332209317,1721037035802,-1072.0,0.000138,2]
[332209318,1721037035812,-150.0,0.000138,2]
[332209319,1721037035822,-155.64925031,0.00013806,2]
[332209320,1721037035831,-306.32165,0.00013835,2]
[332209321,1721037035842,-262.725682,0.00013835,2]
[332209322,1721037035852,-155.64925028,0.00013837,2]
[332209323,1721037035861,-500.0,0.00013851,2]
[332209324,1721037035871,-500.0,0.00013851,2]
[332209325,1721037035881,-500.0,0.00013851,2]
[332209326,1721037035890,-500.0,0.00013851,2]
[332209327,1721037035899,-505.49410029,0.00013851,2]
[332209328,1721037035910,-503.94944391,0.00013851,2]
[332209329,1721037035920,-500.0,0.00013851,2]
[332209330,1721037035929,-509.04025367,0.00013851,2]
[332209331,1721037035939,-407.08403644,0.00013851,2]
[332209332,1721037035953,-597.48,0.00013851,2]
[332209333,1721037035962,-508.76406422,0.00013851,2]
[332209334,1721037035972,-502.32329461,0.00013851,2]
[332209335,1721037035982,-500.0,0.00013851,2]
[332209336,1721037035992,-500.0,0.00013851,2]
[332209337,1721037036002,-612.13096157,0.00013851,2]
[332209338,1721037036011,-612.7,0.00013851,2]
[332209339,1721037036021,-500.0,0.00013851,2]
[332209340,1721037036031,-560.93535772,0.00013851,2]
[332209341,1721037036041,-512.47785613,0.00013851,2]
[332209342,1721037036050,-500.0,0.00013851,2]
[332209343,1721037036060,-500.0,0.00013851,2]
[332209344,1721037036069,-500.0,0.00013851,2]
[332209345,1721037036079,-500.0,0.00013851,2]
[332209346,1721037036089,-500.0,0.00013851,2]
[332209347,1721037036099,-505.97437545,0.00013851,2]
[332209348,1721037036109,-518.52386062,0.00013851,2]
[332209349,1721037036118,-500.0,0.00013851,2]
[332209350,1721037036129,-589.68,0.00013851,2]
[332209351,1721037036138,-155.64925028,0.00013869,2]
[332209352,1721037036149,-500.0,0.00013879,2]
[332209353,1721037036159,-505.2467466,0.00013879,2]
[332209354,1721037036169,-562.26707606,0.00013879,2]
[332209355,1721037036179,-504.17376851,0.00013879,2]
[332209356,1721037036189,-500.0,0.00013879,2]
[332209357,1721037036200,-500.0,0.00013887,2]
[332209358,1721037036209,-500.0,0.00013888,2]
[332209359,1721037036220,-200.0,0.00013888,2]
[332209360,1721037036230,-218.59405976,0.00013897,2]
[332209361,1721037036239,-1000.0,0.00013898,2]
[332209362,1721037036249,-1868.76810244,0.00013898,2]
[332209363,1721037036261,-597.34227907,0.00013898,2]
[332209364,1721037036272,-33.88961849,0.00013898,2]
[332209365,1721037036282,-1000.0,0.000139,2]
[332209366,1721037036292,-1000.0,0.000139,2]
[332209367,1721037036301,-354.72847658,0.000139,2]
[332209368,1721037036311,-128.62190493,0.000139,2]
[332209376,1721037037536,-335.62839798,0.00011098,2]
[332209377,1721037037569,-319.504,0.00011098,2]
[332209378,1721037037601,-468.46411503,0.00011098,2]
[332209379,1721037037610,-27.02734535,0.000139,2]
[332209380,1721037037619,-322.88753621,0.000139,2]
[332209381,1721037037629,-452.51716678,0.00013906,2]
[332209382,1721037037815,-47.48283322,0.00013906,2]
[332209383,1721037037825,-500.0,0.00013906,2]
[332209384,1721037037835,-316.32,0.00013906,2]
[332209385,1721037037845,-612.7,0.00013906,2]
[332209386,1721037037855,-500.0,0.00013906,2]
[332209387,1721037037864,-500.0,0.00013906,2]
[332209388,1721037037873,-239.77116894,0.00013906,2]
[332209389,1721037037881,-584.63,0.00013906,2]
[332209390,1721037037890,-589.68,0.00013906,2]
[332209391,1721037037900,-416.93418921,0.00013934,2]
[332209392,1721037037909,-500.0,0.00013934,2]
[332209393,1721037037918,-152.238972,0.00013948,2]
[332209394,1721037037927,-418.7416023,0.00013958,2]
[332209395,1721037037936,-152.74,0.00013961,2]
[332209396,1721037037946,-234.63,0.00013961,2]
[332209397,1721037037955,-612.7,0.00013961,2]
[332209398,1721037037964,-500.0,0.00013961,2]
[332209399,1721037037974,-500.0,0.00013961,2]
[332209400,1721037037984,-589.68,0.00013961,2]
[332209401,1721037037993,-500.0,0.00013989,2]
[332209402,1721037038003,-1258.55473363,0.00013989,2]
[332209403,1721037038012,-273.09054927,0.0001399,2]
[332209404,1721037038021,-185.1,0.00013997,2]
[332209405,1721037038030,-500.0,0.00013997,2]
[332209406,1721037038039,-713.2,0.00013997,2]
[332209407,1721037038048,-500.0,0.00013997,2]
[332209408,1721037038057,-581.17,0.00013997,2]
[332209409,1721037038067,-500.0,0.00013997,2]
[332209410,1721037038076,-425.04991602,0.00013997,2]
[332209411,1721037038086,-617.3,0.00013997,2]
[332209412,1721037038095,-500.0,0.00013997,2]
[332209413,1721037038104,-500.0,0.00013997,2]
[332209414,1721037038113,-500.0,0.00013997,2]
[332209415,1721037038123,-1514.73,0.00013997,2]
[332209416,1721037038131,-500.0,0.00013997,2]
[332209417,1721037038141,-1050.1,0.00013997,2]
[332209418,1721037038150,-201.30121332,0.00013997,2]
[332209419,1721037038159,-70.81343278,0.00013997,2]
[332209424,1721037039591,-429.18656722,0.00013997,2]
[332209425,1721037039601,-500.0,0.00013997,2]
[332209426,1721037039610,-476.44601302,0.00013997,2]
[332209427,1721037039790,-23.55398698,0.00013997,2]
[332209428,1721037039799,-481.31601303,0.00013997,2]
[332209429,1721037039868,-18.68398697,0.00013997,2]
[332209430,1721037039877,-500.0,0.00013997,2]
[332209431,1721037039887,-7017.561746,0.00013998,2]
[332209432,1721037039895,-10526.342619,0.00013998,2]
[332209433,1721037039904,-14035.123492,0.00013998,2]
[332209434,1721037039913,-17543.904365,0.00013998,2]
[332209435,1721037039922,-24561.466112,0.00013998,2]
[332209436,1721037039932,-9881.82608322,0.00013998,2]
[332209437,1721037039944,-485.49,0.00013998,2]
[332209454,1721037043285,-625.93982827,0.00013333,2]
[332209456,1721037043295,-155.0,0.00013472,2]
[332209458,1721037043304,-1000.0,0.000139,2]
[332209459,1721037043313,-17702.93090178,0.00013998,2]
[332209460,1721037043323,-3000.0,0.00013998,2]
[332209461,1721037043332,-319.18673743,0.00013999,2]
[332209462,1721037043341,-334.09083379,0.00013999,2]
[332209463,1721037043351,-292.33438899,0.00013999,2]
[332209464,1721037043361,-500.0,0.00013999,2]
[332209465,1721037043371,-537.49837619,0.00013999,2]
[332209466,1721037043381,-502.7,0.00013999,2]
[332209467,1721037043391,-500.0,0.00013999,2]
[332209468,1721037043401,-500.0,0.00013999,2]
[332209469,1721037043411,-1017.67,0.00013999,2]
[332209470,1721037043420,-500.0,0.00013999,2]
[332209471,1721037043430,-508.93319633,0.00013999,2]
[332209472,1721037043440,-500.0,0.00013999,2]
[332209473,1721037043451,-541.49,0.00013999,2]
[332209474,1721037043460,-500.0,0.00013999,2]
[332209475,1721037043469,-500.0,0.00013999,2]
[332209476,1721037043479,-500.0,0.00013999,2]
[332209477,1721037043489,-500.0,0.00013999,2]
[332209478,1721037043499,-529.57295517,0.00013999,2]
[332209479,1721037043508,-500.0,0.00013999,2]
[332209480,1721037043518,-500.0,0.00013999,2]
[332209481,1721037043528,-500.0,0.00013999,2]
[332209482,1721037043537,-500.0,0.00013999,2]
[332209483,1721037043546,-551.79669708,0.00013999,2]
[332209484,1721037043556,-500.0,0.00013999,2]
[332209485,1721037043566,-500.0,0.00013999,2]
[332209486,1721037043575,-500.0,0.00013999,2]
[332209487,1721037043585,-500.0,0.00013999,2]
[332209488,1721037043595,-19649.39918542,0.00013999,2]
[332209489,1721037043605,-121709.78309273,0.00014,2]
[332209490,1721037043620,-10446.60268532,0.00014,2]
[332209500,1721037045804,-291.47910357,0.000139,2]
[332209502,1721037048607,157.31,0.00018849,30]
[332209503,1721037203243,662.9,0.00010947,2]
[332209507,1721037616983,157.31,0.00018849,30]
[332209509,1721037666699,3583.0331,0.00010998,2]
[332209510,1721037719108,643.18,0.00010832,2]
[332209524,1721038205742,157.31,0.00018849,30]
[332209529,1721038231720,-283.39033038,0.00011041,2]
[332209530,1721038231734,-5112.12696747,0.00011041,2]
[332209531,1721038231916,-294.27533515,0.00011041,2]
[332209532,1721038231927,-61.14301064,0.00011097,2]
[332209533,1721038231939,-88.85698936,0.00011097,2]
[332209534,1721038231950,-844.63507742,0.00011098,2]
[332209535,1721038231962,-1850.72560984,0.00011098,2]
[332209536,1721038231974,-1672.94781094,0.00011098,2]
[332209537,1721038231983,-155.62221383,0.00011098,2]
[332209538,1721038231992,-2460.66336614,0.00011098,2]
[332209539,1721038232002,-173.25306592,0.00011098,2]
[332209540,1721038232011,-1399.54620502,0.00011098,2]
[332209541,1721038232021,-157.0856448,0.00011098,2]
[332209542,1721038232030,-624.51640094,0.00011098,2]
[332209544,1721038232039,-155.0,0.00011098,2]
[332209546,1721038232050,-4.28615765,0.00011098,2]
[332209549,1721038232061,-236.4703531,0.00011098,2]
[332209551,1721038232071,-156.0,0.00011098,2]
[332209553,1721038232080,-916.20447795,0.00011199,2]
[332209562,1721038238373,-6260.55422,0.00011098,2]
[332209563,1721038238383,-14082.99531039,0.00011199,2]
[332209564,1721038238394,-18880.49387926,0.00011199,2]
[332209565,1721038238404,-205.60929555,0.00012314,2]
[332209566,1721038238413,-250.0,0.00012581,2]
[332209567,1721038238422,-184.0940624,0.000126,2]
[332209568,1721038238431,-1000.0,0.00012605,2]
[332209569,1721038238440,-10376.97,0.00012623,2]
[332209570,1721038238449,-177.6,0.00012794,2]
[332209571,1721038238458,-219.81,0.00012798,2]
[332209572,1721038238467,-1250.0,0.00013,2]
[332209573,1721038238477,-499.99,0.00013096,2]
[332209574,1721038238486,-643.18,0.00013096,2]
[332209575,1721038238495,-300.0,0.000131,4]
[332209576,1721038238504,-600.0,0.000132,4]
[332209577,1721038238513,-1000.0,0.000133,4]
[332209578,1721038238522,-1300.0,0.000134,4]
[332209579,1721038238532,-155.367607,0.00013498,2]
[332209580,1721038238541,-164.151635,0.00013498,2]
[332209581,1721038238550,-253.760721,0.00013498,2]
[332209582,1721038238559,-180.403032,0.00013498,2]
[332209583,1721038238569,-192.122,0.000135,2]
[332209584,1721038238578,-1700.0,0.000135,4]
[332209585,1721038238586,-54859.47025329,0.00013525,2]
[332209586,1721038238598,-1337.30407824,0.00013525,2]
[332209587,1721038238608,-2770.22566847,0.00013525,2]
[332209588,1721038238618,-300.0,0.000136,4]
[332209589,1721038238627,-250.0,0.00013699,2]
[332209590,1721038238636,-224.87,0.00013699,2]
[332209591,1721038238645,-300.0,0.000137,5]
[332209592,1721038238654,-334.58997074,0.000137,2]
[332209593,1721038238663,-7500.0,0.000137,2]
[332209594,1721038238672,-385.10220627,0.00013702,2]
[332209595,1721038238681,-155.367607,0.00013723,2]
[332209596,1721038238690,-157.94402281,0.00013799,2]
[332209598,1721038238700,-163.76335594,0.00013799,2]
[332209600,1721038238709,-634.65852494,0.00013799,2]
[332209602,1721038238718,-500.0,0.00013799,2]
[332209604,1721038238727,-500.0,0.00013799,2]
[332209606,1721038238736,-500.0,0.00013799,2]
[332209607,1721038238745,-251.72,0.00013799,2]
[332209609,1721038238754,-500.0,0.00013799,2]
[332209611,1721038238763,-683.48,0.00013799,2]
[332209613,1721038238772,-500.0,0.00013799,2]
[332209615,1721038238781,-500.0,0.00013799,2]
[332209617,1721038238790,-556.95,0.00013799,2]
[332209619,1721038238799,-500.0,0.00013799,2]
[332209622,1721038238808,-1777.54,0.00013799,2]
[332209623,1721038238818,-500.0,0.00013799,2]
[332209625,1721038238827,-585.21,0.00013799,2]
[332209627,1721038238836,-500.0,0.00013799,2]
[332209630,1721038238845,-525.49635012,0.00013799,2]
[332209632,1721038238854,-1270.57,0.00013799,2]
[332209634,1721038238863,-897.6,0.00013799,2]
[332209636,1721038238873,-500.0,0.00013799,2]
[332209637,1721038238882,-500.0,0.00013799,2]